[Event "Hungarian U20 Junior-ch Men 2024"]
[Site "Budapest"]
[Date "2024.03.12"]
[Round "2.5"]
[White "Pasztor, Balazs"]
[Black "Juhasz, Agoston"]
[Result "1/2-1/2"]
[ECO "B12"]
[WhiteElo "2406"]
[BlackElo "2406"]
[Annotator "TA"]
[PlyCount "119"]
[EventDate "2024.03.10"]
[EventCountry "HUN"]
[SourceTitle "playchess.com"]
[Source "ChessBase"]
[SourceQuality "1"]
[TimeControl "40/5400+30:1800+30"]

{[%evp 29,119,-42,-30,-58,0,0,0,0,0,-66,-54,-51,-11,-64,-58,-74,-9,-65,-72,-58,-57,-107,-102,-122,-72,-101,0,0,0,-1,0,0,0,0,0,0,0,0,0,0,21,0,21,17,24,12,17,17,17,10,11,10,12,17,142,135,131,137,154,157,207,108,110,103,116,8,8,8,8,8,16,8,8,0,0,0,8,8,8,8,8,8,8,8,8,8,8,8,8,8,8,8]} 1. e4 {[%emt 0:00:33]} c6 {[%emt 0:00:54]} 2. d4 {[%emt 0:00:06]} d5 {[%emt 0:00:04]} 3. e5 {[%emt 0:00:05]} c5 {[%emt 0:00:20]} 4. Nf3 {[%emt 0:00:08]} cxd4 {[%emt 0:00:06]} 5. Qxd4 {[%emt 0:00:04]} Nc6 {[%emt 0:00:15]} 6. Qf4 {[%emt 0:00:07] B12: Caro-Kann: Advance Variation.} e6 {[%emt 0:00:41]} 7. Bd3 {[%emt 0:00:08]} Nb4 {[%emt 0:01:44]} 8. Bd2 {[%emt 0:00:06]} Nxd3+ {[%emt 0:04:39]} 9. cxd3 {[%emt 0:00:23]} Ne7 {[%emt 0:11:07]} 10. Nc3 {[%emt 0:00:13]} Bd7 {[%emt 0:03:30]} 11. a4 {[%emt 0:20:25]} Rc8 $146 {[%emt 0:12:59]} ({Predecessor:} 11... h6 12. h4 a6 13. Ne2 Rc8 14. O-O g6 15. Rac1 Bg7 16. Rxc8 Bxc8 17. Rc1 O-O {1-0 Mastrovasilis,D (2603)-Jianu,V (2504) ITA-chT GpB 54th 2023 (2)}) 12. Ne2 {[%emt 0:05:36]} Nf5 {[%emt 0:10:06]} 13. g4 {[%emt 0:12:06]} Nh4 {[%emt 0:04:20]} 14. Nxh4 {[%emt 0:03:28]} Qxh4 {[%emt 0:00:08]} 15. Qg3 {[%emt 0:05:49]} Qd8 {[%emt 0:02:51]} 16. Bc3 {[%emt 0:05:19] [#]} d4 {[%emt 0:04:57]} (16... Bc5 $1 $15) 17. Nxd4 $11 {[%emt 0:02:50]} Bc5 {[%emt 0:01:28]} 18. Qf4 {[%emt 0:05:53]} O-O {[%emt 0:05:18]} 19. h4 {[%emt 0:03:09]} (19. g5 $11) 19... f6 $1 $15 {[%emt 0:02:56]} 20. Rh3 {[%emt 0:01:58]} Be7 {[%emt 0:03:20]} 21. Qe3 {[%emt 0:04:31]} ({White should try} 21. Kf1 $11) 21... fxe5 $1 $15 {[%emt 0:07:03]} 22. Nf3 {[%emt 0:01:35]} Bc6 {[%emt 0:02:39]} (22... Bc5 $1 $17 {[%cal Rc5e3]} 23. Qxe5 Qe7) 23. g5 {[%emt 0:02:14]} (23. h5 $11) 23... Rf5 {[%emt 0:04:23]} 24. Nxe5 {[%emt 0:02:09]} Bd5 {[%emt 0:00:53]} 25. Ng4 {[%emt 0:05:18]} (25. f4 $15) 25... Bc5 {[%emt 0:02:16]} 26. Qe2 {[%emt 0:00:57]} Qd7 {[%emt 0:02:29]} (26... e5 $142 27. Rg3 Qf8) 27. Ne3 {[%emt 0:01:57]} Rf7 {[%emt 0:00:40]} (27... Rf4 $17 {aiming for ...e5.} 28. Be5 Rxa4 29. Rxa4 Qxa4) 28. g6 $1 $11 {[%emt 0:02:46]} hxg6 {[%emt 0:00:44]} 29. h5 $1 {[%emt 0:00:05]} e5 {[%emt 0:02:25]} 30. hxg6 {[%emt 0:11:34]} Qxh3 {[%emt 0:00:25]} 31. gxf7+ {[%emt 0:00:06]} Bxf7 {[%emt 0:00:36]} 32. Qg4 {[%emt 0:02:23]} Qxg4 {[%emt 0:06:33]} 33. Nxg4 {[%emt 0:00:06]} Bd4 {[%emt 0:00:35]} 34. Kd2 {[%emt 0:01:39]} Rc5 {[%emt 0:01:19]} 35. Rc1 {[%emt 0:01:41]} Bb3 {[%emt 0:02:16]} 36. a5 {[%emt 0:00:14]} Be6 {[%emt 0:00:47]} 37. Bxd4 {[%emt 0:00:31]} Rxc1 {[%emt 0:00:05]} 38. Kxc1 {[%emt 0:00:39]} exd4 {[%emt 0:01:01]} 39. Ne5 {[%emt 0:00:30]} Bd5 $1 {[%emt 0:00:25]} 40. Kd2 {[%emt 0:00:00]} Kf8 {[%emt 0:00:00]} 41. Ke2 {[%emt 0:08:31]} Ke7 {[%emt 0:07:52]} (41... Be6 $1 $11 {remains equal.}) 42. Nf3 $16 {[%emt 0:00:39]} Kd6 {[%emt 0:04:58]} 43. Nxd4 {[%emt 0:00:49]} Kc5 {[%emt 0:00:46]} 44. Ke3 {[%emt 0:00:17]} Kb4 {[%emt 0:01:18] [#]} (44... g6 $16 45. f4 a6 (45... Kb4 46. Nf3 $16)) 45. Nf5 {[%emt 0:00:43]} (45. Kf4 $1 $18 {[%cal Rf4e5]}) 45... Kxa5 {[%emt 0:04:02]} 46. Nxg7 {[%emt 0:07:00]} Kb4 {[%emt 0:02:13] [#]} 47. Kd2 {[%emt 0:02:43]} (47. Ne8 $1 $16 {[%cal Re8c7]}) 47... a5 $11 {[%emt 0:02:56]} 48. Nf5 {[%emt 0:00:19]} b5 {[%emt 0:01:55]} 49. Ne3 {[%emt 0:01:48]} Bf7 {[%emt 0:01:25]} 50. Nc2+ {[%emt 0:06:45]} Kc5 {[%emt 0:03:30]} 51. d4+ {[%emt 0:01:55]} Kc4 {[%emt 0:01:01]} 52. Na3+ {[%emt 0:00:42]} Kxd4 {[%emt 0:01:10]} 53. Nxb5+ {[%emt 0:00:07]} Kc5 {[%emt 0:00:18]} 54. Na3 {[%emt 0:00:54]} Kb4 {[%emt 0:00:36]} 55. Nc2+ {[%emt 0:00:19]} Kb3 {[%emt 0:00:40]} 56. Kc1 {[%emt 0:00:06]} a4 {[%emt 0:01:14]} 57. f4 {[%emt 0:00:32]} Bg6 {[%emt 0:01:35]} 58. f5 {[%emt 0:02:23]} Bxf5 {[%emt 0:00:34]} 59. Nd4+ {[%emt 0:00:06]} Kb4 {[%emt 0:00:15]} 60. Nxf5 {[%emt 0:00:07]} 1/2-1/2

[Event "Hungarian U20 Junior-ch Men 2024"]
[Site "Budapest"]
[Date "2024.03.13"]
[Round "3.1"]
[White "Juhasz, Agoston"]
[Black "Karacsonyi, Gellert"]
[Result "1/2-1/2"]
[ECO "C42"]
[WhiteElo "2406"]
[BlackElo "2386"]
[Annotator "TA"]
[PlyCount "65"]
[EventDate "2024.03.10"]
[EventCountry "HUN"]
[SourceTitle "playchess.com"]
[Source "ChessBase"]
[SourceQuality "1"]
[TimeControl "40/5400+30:1800+30"]

{[%evp 9,65,17,16,0,10,5,6,5,8,5,0,0,14,-10,0,0,-2,-9,-14,-15,-10,-20,0,0,0,0,0,0,0,0,0,0,0,-1,0,0,0,0,0,0,0,0,0,0,0,0,-3,0,0,0,0,0,0,0,0,0,0,0]} 1. e4 {[%emt 0:00:38]} e5 {[%emt 0:00:38]} 2. Nf3 {[%emt 0:00:20]} Nf6 {[%emt 0:00:08]} 3. Nxe5 {[%emt 0:00:53]} d6 {[%emt 0:00:22]} 4. Nf3 {[%emt 0:00:30]} Nxe4 {[%emt 0:00:10]} 5. c4 {[%emt 0:00:33]} Nc6 {[%emt 0:00:14] Die Stellung ist ausgeglichen.} 6. d3 {[%emt 0:01:11][%cal Bd2d3,Bd3d4][%mdl 32]} Nf6 {[%emt 0:00:14]} 7. d4 {[%emt 0:00:30]} Be7 {[%emt 0:00:15]} 8. Nc3 {[%emt 0:00:42]} O-O {[%emt 0:01:05]} 9. d5 {[%emt 0:00:39]} Ne5 {[%emt 0:03:27]} 10. Nd4 {[%emt 0:00:48]} c5 {[%emt 0:11:49]} 11. dxc6 {[%emt 0:05:00]} Nxc6 {[%emt 0:02:13]} 12. Nxc6 {[%emt 0:32:37]} bxc6 {[%emt 0:00:03]} 13. Be2 {[%emt 0:00:47]} d5 {[%emt 0:02:48]} 14. cxd5 {[%emt 0:05:08]} Nxd5 {[%emt 0:00:35]} 15. Nxd5 {[%emt 0:02:13]} Qxd5 {[%emt 0:00:25]} 16. O-O {[%emt 0:03:03]} Qxd1 {[%emt 0:05:27]} 17. Rxd1 {[%emt 0:00:19]} Bf6 {[%emt 0:00:11]} 18. Be3 {[%emt 0:05:25]} Be6 {[%emt 0:04:43]} 19. Rac1 {[%emt 0:09:49]} Bxa2 {[%emt 0:03:30]} 20. Rxc6 {[%emt 0:01:14]} a5 {[%emt 0:01:23]} 21. Bd4 {[%emt 0:01:51]} Bb3 {[%emt 0:09:22]} 22. Rd3 {[%emt 0:01:38]} Bxd4 {[%emt 0:01:14]} 23. Rxb3 {[%emt 0:06:43]} Rab8 {[%emt 0:12:57]} 24. Rxb8 {[%emt 0:03:13]} Rxb8 $11 {[%emt 0:00:02][%mdl 4096] Endspiel. KRB-KRB} 25. b3 {[%emt 0:06:38]} g6 {[%emt 0:00:09]} ({Und nicht} 25... Rxb3 26. Rc8#) 26. Rc4 {[%emt 0:02:30]} Bf6 {[%emt 0:01:10]} 27. Rc5 {[%emt 0:02:31]} Rxb3 {[%emt 0:00:07]} 28. Rxa5 {[%emt 0:00:24]} Rb2 {[%emt 0:00:42]} 29. Ra8+ {[%emt 0:01:13]} Kg7 {[%emt 0:00:04]} 30. Re8 {[%emt 0:00:03]} Bd4 {[%emt 0:00:04]} 31. g4 {[%emt 0:02:32]} f6 {[%emt 0:01:23]} 32. Re4 {[%emt 0:00:49]} Bb6 {[%emt 0:00:11]} 33. Kg2 {[%emt 0:00:46] Nicht viel passiert in dieser Partie.   Gewichteter Fehlerwert: Weiß=0.02 (makellos) /Schwarz=0.01 (makellos) .  OK:         	Weiß=18    	Schwarz=12    Bester:       	---       	Schwarz=1} 1/2-1/2

[Event "Hungarian U20 Junior-ch Men 2024"]
[Site "Budapest"]
[Date "2024.03.13"]
[Round "3.2"]
[White "Kolimar, Kristof Pal"]
[Black "Pasztor, Balazs"]
[Result "1-0"]
[ECO "B56"]
[WhiteElo "2282"]
[BlackElo "2406"]
[Annotator "TA"]
[PlyCount "95"]
[EventDate "2024.03.10"]
[EventCountry "HUN"]
[SourceTitle "playchess.com"]
[Source "ChessBase"]
[SourceQuality "1"]
[TimeControl "40/5400+30:1800+30"]

{[%evp 16,95,28,8,12,0,0,0,14,16,39,50,49,18,23,12,20,10,43,52,105,104,101,75,106,110,110,108,140,136,129,139,111,120,132,127,132,125,125,120,122,118,251,245,266,253,241,237,245,216,205,222,216,196,257,249,262,243,251,261,260,256,343,340,519,258,313,313,303,253,369,374,794,800,785,809,807,802,787,773,774,764]} 1. e4 c5 {[%emt 0:00:35]} 2. Nf3 {[%emt 0:00:41]} d6 {[%emt 0:00:05]} 3. d4 {[%emt 0:00:02]} cxd4 {[%emt 0:00:05]} 4. Nxd4 {[%emt 0:00:02]} Nf6 {[%emt 0:00:08]} 5. Nc3 {[%emt 0:00:04]} Nc6 {[%emt 0:00:10]} 6. f3 {[%emt 0:00:04]} e5 {[%emt 0:00:41]} 7. Nb3 {[%emt 0:00:03]} Be6 {[%emt 0:00:34]} 8. Be3 {[%emt 0:00:05]} Be7 {[%emt 0:00:41]} 9. Nd5 {[%emt 0:00:20]} O-O {[%emt 0:00:34]} 10. Be2 {[%emt 0:05:40]} a5 {[%emt 0:14:33]} 11. c4 {[%emt 0:01:56]} a4 {[%emt 0:01:17] The position is equal.} 12. Nd2 {[%emt 0:05:42][%cal Bb3d2,Bd2b1,Bb1a3,Ba3b5,Bb5c3,Bc3d5,Bd5e7][%mdl 32]} Nd7 {[%emt 0:24:10]} 13. Nxe7+ {[%emt 0:06:39]} Qxe7 {[%emt 0:02:47]} 14. O-O {[%emt 0:05:13]} f5 {[%emt 0:13:08]} 15. exf5 {[%emt 0:09:31]} Bxf5 {[%emt 0:00:11]} 16. Nb1 {[%emt 0:08:49]} Nb4 {[%emt 0:08:47]} 17. Na3 {[%emt 0:00:23] Prevents Nc2.} Nc5 {[%emt 0:01:45]} (17... Nf6 $14) 18. Qd2 $16 {[%emt 0:04:15]} Nbd3 {[%emt 0:04:47]} 19. Nb5 {[%emt 0:06:32]} Ra6 {[%emt 0:03:24]} 20. Nc3 {[%emt 0:03:50]} (20. Rad1 {simplifies} Bg6 21. Bxc5 Nxc5 22. Nxd6 Rc6 23. Qe3) 20... Qh4 {[%emt 0:04:15]} 21. Nd5 {[%emt 0:05:50] [#] g4 would now be deadly.} Kh8 {[%emt 0:00:54]} 22. Rad1 {[%emt 0:03:43]} Bg6 {[%emt 0:15:03][%cal Bf5g6,Bg6f7,Bf7c4][%mdl 32]} 23. g3 {[%emt 0:06:08]} Qxc4 {[%emt 0:00:22]} 24. Ne7 {[%emt 0:00:08]} Bf7 {[%emt 0:00:43][%cal Oc4e6]} 25. Bxd3 {[%emt 0:09:18]} Nxd3 {[%emt 0:00:22]} 26. Qxd3 {[%emt 0:00:04]} Qxd3 {[%emt 0:00:57]} 27. Rxd3 {[%emt 0:00:04] Hoping for Rfd1.} Bc4 {[%emt 0:00:11]} 28. Rc3 {[%emt 0:04:05]} b5 {[%emt 0:02:01] A mistake that costs the game.} (28... Bxf1 $16 29. Kxf1 Rxf3+ 30. Ke2 Rf8) 29. Rd1 {[%emt 0:01:04]} Bxa2 {[%emt 0:00:36]} 30. Nc6 {[%emt 0:04:24] [#] Nb4 is the strong threat.} Bc4 {[%emt 0:00:51]} 31. Nb4 {[%emt 0:01:58]} Raa8 {[%emt 0:00:12]} 32. f4 {[%emt 0:00:47]} exf4 {[%emt 0:00:35]} 33. Bxf4 {[%emt 0:00:07]} d5 {[%emt 0:00:19]} 34. Re3 {[%emt 0:05:38]} Bb3 {[%emt 0:01:13]} (34... Rf7 {was necessary.} 35. Be5 (35. Nxd5 Rd7 $18) 35... d4 36. Bxd4 Rd7) 35. Rde1 $18 {[%emt 0:01:32]} d4 {[%emt 0:00:29]} 36. Rd3 {[%emt 0:01:18]} h6 {[%emt 0:00:32]} 37. Rxd4 {[%emt 0:00:37]} Rf7 {[%emt 0:00:10]} 38. Nd3 {[%emt 0:01:22]} a3 {[%emt 0:00:10]} 39. bxa3 {[%emt 0:00:23]} Rxa3 {[%emt 0:00:01]} (39... Kh7 $142 40. Bd6 Rd8) 40. Rb4 {[%emt 0:00:00]} (40. Rd8+ $142 Kh7 41. Ree8) 40... Bd5 {[%emt 0:00:00]} 41. Ne5 {[%emt 0:02:32]} Rb7 {[%emt 0:00:03]} 42. Rd1 {[%emt 0:01:51]} Rb3 {[%emt 0:00:39]} (42... Ba2 $142 43. Ra1 Rb3) 43. Rbd4 {[%emt 0:03:16]} Be6 {[%emt 0:00:41]} (43... Bf3 44. Nxf3 Rxf3) 44. Ng6+ {[%emt 0:01:04] White is clearly winning.} Kg8 {[%emt 0:00:07]} 45. Rd8+ {[%emt 0:00:06]} Kf7 {[%emt 0:00:07]} 46. Ne5+ {[%emt 0:00:48]} Ke7 {[%emt 0:00:08]} 47. Nc6+ {[%emt 0:00:32]} Kf7 {[%emt 0:00:28]} 48. R8d6 {[%emt 0:00:47] Weighted Error Value: White=0.13 (very precise) /Black=0.30.  Mistake:       	White=1     	Black=6      Inaccurate:     	White=1     	Black=3      OK:         	White=15    	Black=8      Best:        	White=2     	Black=2} 1-0

[Event "Hungarian U20 Junior-ch Men 2024"]
[Site "Budapest"]
[Date "2024.03.13"]
[Round "3.3"]
[White "Bodrogi, Bendeguz"]
[Black "Szikszai, Bertalan"]
[Result "1-0"]
[ECO "A49"]
[WhiteElo "2316"]
[BlackElo "2312"]
[Annotator "TA"]
[PlyCount "91"]
[EventDate "2024.03.10"]
[EventCountry "HUN"]
[SourceTitle "playchess.com"]
[Source "ChessBase"]
[SourceQuality "1"]
[TimeControl "40/5400+30:1800+30"]

{[%evp 10,91,13,0,22,-2,0,6,25,24,27,27,24,3,19,0,0,0,20,0,64,61,76,70,78,64,125,122,149,157,238,256,327,330,380,374,370,369,361,367,393,335,358,266,269,266,268,251,254,258,318,300,314,313,321,316,307,310,305,261,249,238,324,324,336,217,446,425,795,743,1562,1567,8733,7568,29974,29973,29976,29977,29978,29979,29981,29982,29982,29981]} 1. d4 {[%emt 0:00:44]} Nf6 {[%emt 0:00:40]} 2. Nf3 {[%emt 0:00:26]} g6 {[%emt 0:00:36]} 3. g3 {[%emt 0:00:10]} Bg7 {[%emt 0:00:13]} 4. Bg2 {[%emt 0:00:09]} O-O {[%emt 0:00:16]} 5. O-O {[%emt 0:00:11]} d5 {[%emt 0:00:45]} 6. Bf4 {[%emt 0:00:25]} Nh5 {[%emt 0:03:15]} 7. Bg5 {[%emt 0:04:50][%cal Oc2c4] [#]} c5 $1 {[%emt 0:06:34]} 8. c3 {[%emt 0:02:32]} Nc6 {[%emt 0:02:12] The position is equal.} 9. dxc5 {[%emt 0:16:10]} h6 {[%emt 0:02:55]} 10. Bc1 {[%emt 0:03:07]} e5 {[%emt 0:08:41]} 11. Na3 {[%emt 0:06:43]} Be6 {[%emt 0:04:25]} 12. Nb5 {[%emt 0:04:21]} Nf6 {[%emt 0:12:19]} 13. b4 {[%emt 0:04:39]} a5 {[%emt 0:11:25]} 14. Bb2 {[%emt 0:06:32]} e4 {[%emt 0:21:09]} (14... Qb8 $11) 15. Nfd4 $14 {[%emt 0:01:49]} axb4 {[%emt 0:00:58]} 16. Nxe6 {[%emt 0:09:43] White now steadily converts the win.} fxe6 {[%emt 0:00:05]} 17. Bh3 {[%emt 0:00:11]} Qe7 {[%emt 0:01:38]} (17... bxc3 $14 18. Bxe6+ Kh7 19. Bxc3 Qe7) 18. cxb4 $16 {[%emt 0:01:19]} Nxb4 {[%emt 0:00:42] [#]} 19. Nd4 $1 {[%emt 0:01:15][%cal Bb5d4,Bd4e6,Be6f8][%mdl 32]} Nd7 {[%emt 0:06:14] [#]} (19... e5 $16) 20. Qd2 $1 $18 {[%emt 0:04:56]} (20. Bxe6+ Kh7 $17) 20... Nc6 {[%emt 0:06:18]} 21. Nxe6 {[%emt 0:03:01]} (21. Bxe6+ Kh7 22. Bxd5 Nxd4 $18) 21... Bxb2 {[%emt 0:00:16]} 22. Nxf8 {[%emt 0:02:25]} ({But not} 22. Qxb2 Rfb8 23. Rfd1 e3 $18) 22... Bxa1 {[%emt 0:01:57]} 23. Nxd7 {[%emt 0:02:38]} Bg7 {[%emt 0:01:16]} 24. Qxd5+ {[%emt 0:00:08]} Kh7 {[%emt 0:00:04]} 25. e3 {[%emt 0:03:31]} Ra3 {[%emt 0:01:19]} 26. Rb1 {[%emt 0:01:47]} Rd3 {[%emt 0:00:40]} 27. Qe6 {[%emt 0:00:09]} Qxe6 {[%emt 0:01:45]} 28. Bxe6 {[%emt 0:00:07]} Nd8 {[%emt 0:00:11]} 29. Bh3 {[%emt 0:00:38]} Bc3 {[%emt 0:03:34]} 30. Nf8+ {[%emt 0:01:39]} Kg7 {[%emt 0:00:33]} 31. Ne6+ {[%emt 0:00:07]} Nxe6 {[%emt 0:00:04]} 32. Bxe6 {[%emt 0:00:09][%mdl 4096] Endgame. KRB-KRB} Kf6 {[%emt 0:00:04]} 33. Bc8 {[%emt 0:00:10]} Rd5 {[%emt 0:01:42]} 34. Bxb7 {[%emt 0:00:08]} Rxc5 {[%emt 0:00:03]} 35. Bxe4 {[%emt 0:00:11]} g5 {[%emt 0:00:32]} 36. Rb6+ {[%emt 0:00:17]} Ke5 {[%emt 0:00:10]} 37. Rc6 {[%emt 0:01:08]} Rxc6 {[%emt 0:00:42]} (37... Bb4 {was worth a try.} 38. Rxc5+ Bxc5) 38. Bxc6 {[%emt 0:00:05] KB-KB} Kf5 {[%emt 0:00:35]} (38... Bd2 $142 39. Be8 Kf6) 39. f4 {[%emt 0:00:49]} gxf4 {[%emt 0:01:05]} 40. gxf4 {[%emt 0:00:00]} ({Less strong is} 40. exf4 Bb4 41. Ba4 h5 42. Bd7+ Kf6 $18) 40... h5 {[%emt 0:00:00][%cal Bh6h5,Bh5h4][%mdl 32]} 41. Kf2 {[%emt 0:00:14]} h4 {[%emt 0:00:47]} 42. Kf3 {[%emt 0:00:07] White mates.} Bd2 {[%emt 0:00:30]} 43. h3 {[%emt 0:00:16]} Bc1 {[%emt 0:00:08]} 44. a4 {[%emt 0:00:06]} Bd2 {[%emt 0:00:06]} 45. e4+ {[%emt 0:00:05][%cal Be3e4,Be4e5][%mdl 32]} Ke6 {[%emt 0:00:05]} 46. e5 {[%emt 0:00:06] Weighted Error Value: White=0.14 (very precise) /Black=0.46.  Mistake:       	---       	Black=5      Inaccurate:     	White=1     	Black=2      OK:         	White=12    	Black=14     Best:        	White=3     	Black=1      Strong:       	White=1     	---} 1-0

[Event "Hungarian U20 Junior-ch Men 2024"]
[Site "Budapest"]
[Date "2024.03.13"]
[Round "3.4"]
[White "Palczert, Matyas"]
[Black "Gombocz, Ferenc Jr."]
[Result "0-1"]
[ECO "A30"]
[WhiteElo "2297"]
[BlackElo "2351"]
[Annotator "TA"]
[PlyCount "118"]
[EventDate "2024.03.10"]
[EventCountry "HUN"]
[SourceTitle "playchess.com"]
[Source "ChessBase"]
[SourceQuality "1"]
[TimeControl "40/5400+30:1800+30"]

{[%evp 9,118,9,19,0,0,0,0,0,0,2,12,17,16,17,19,0,31,37,32,15,16,16,18,22,34,0,0,0,0,0,27,28,54,45,58,16,22,20,20,21,49,-16,19,0,0,-28,-35,-143,-125,-147,-142,-139,0,0,0,0,0,0,0,0,0,0,0,0,0,0,0,0,0,-19,-22,-53,-5,0,-6,-8,0,0,0,-109,-114,-381,-335,-348,-444,-433,-409,-376,-390,-444,-403,-472,-366,-490,-454,-435,-420,-400,-373,-833,-833,-819,-819,-783,-772,-739,-732,-494,-487,-29976,-29976]} 1. c4 {[%emt 0:00:38]} c5 {[%emt 0:00:36]} 2. Nf3 {[%emt 0:00:08]} Nc6 {[%emt 0:00:06]} 3. e3 {[%emt 0:00:14]} e5 {[%emt 0:00:33][%cal Be7e5,Be5e4][%mdl 32]} 4. Nc3 {[%emt 0:00:17]} Nf6 {[%emt 0:01:25]} 5. d4 {[%emt 0:00:37]} e4 {[%emt 0:00:43]} 6. d5 {[%emt 0:00:27]} exf3 {[%emt 0:00:11]} 7. dxc6 {[%emt 0:00:06]} dxc6 {[%emt 0:00:08]} 8. Qxd8+ {[%emt 0:00:27] The position is equal.} Kxd8 {[%emt 0:00:05]} 9. gxf3 {[%emt 0:00:10]} g6 {[%emt 0:00:39]} 10. b3 {[%emt 0:02:08]} Bg7 {[%emt 0:00:27][%cal Of6d5]} 11. Bb2 {[%emt 0:00:59]} b6 {[%emt 0:03:06]} 12. Bg2 {[%emt 0:04:44]} (12. Ne4 {is more complex.} Nh5 13. O-O-O+ Kc7 14. Be2) 12... Ke7 {[%emt 0:05:38]} 13. f4 {[%emt 0:02:14]} Bd7 {[%emt 0:01:33]} 14. Ne4 {[%emt 0:21:28]} Rhd8 {[%emt 0:21:49]} 15. Ng3 $1 {[%emt 0:02:24]} Nh5 {[%emt 0:10:06]} 16. Bxg7 {[%emt 0:02:48]} Nxg7 {[%emt 0:00:11]} 17. h4 {[%emt 0:08:40]} h5 {[%emt 0:00:50]} 18. O-O-O {[%emt 0:02:29]} a5 {[%emt 0:02:31]} 19. a4 {[%emt 0:08:15]} Be8 {[%emt 0:01:08]} 20. Bf3 {[%emt 0:03:16][%cal Of4f5]} Kf6 {[%emt 0:41:02]} 21. Be4 {[%emt 0:02:29]} Ke6 {[%emt 0:00:36]} 22. f5+ {[%emt 0:02:01]} gxf5 {[%emt 0:00:32]} 23. Bf3 {[%emt 0:00:14]} f6 {[%emt 0:00:16]} 24. Rdg1 {[%emt 0:09:31]} Ke7 {[%emt 0:01:54]} 25. Bd1 {[%emt 0:06:10]} (25. Ne2 $1 $14 Ne6 26. Ng3) 25... f4 {[%emt 0:01:48]} 26. exf4 {[%emt 0:00:48]} f5 {[%emt 0:00:17] Prevents Ne4.} 27. Nf1 {[%emt 0:03:08]} Ne6 {[%emt 0:00:39]} 28. Ne3 {[%emt 0:00:54]} (28. Bc2 $15) 28... Nxf4 $17 {[%emt 0:02:28]} 29. Nxf5+ {[%emt 0:00:37]} Kf6 {[%emt 0:00:07]} 30. Ng3 {[%emt 0:01:51]} Bg6 {[%emt 0:00:06] Black has more active pieces.} ({Better is} 30... Nd3+ $17 31. Kb1 Nxf2) 31. Bc2 $11 {[%emt 0:00:31]} Bxc2 {[%emt 0:00:28]} 32. Kxc2 {[%emt 0:00:07]} Rd4 {[%emt 0:00:10]} 33. f3 {[%emt 0:01:20]} Kf7 {[%emt 0:02:42]} 34. Ne4 {[%emt 0:00:37]} Ne6 {[%emt 0:00:36] Dodges Rg5} 35. Rg2 {[%emt 0:03:12]} Rad8 {[%emt 0:00:36]} 36. Rhg1 {[%emt 0:01:25]} Rd3 {[%emt 0:01:06]} 37. Rg6 {[%emt 0:03:49] Hoping for Rf6+.} Re3 $1 {[%emt 0:00:12][%cal Od8d3]} 38. Rf6+ {[%emt 0:01:39]} Ke7 {[%emt 0:00:05]} 39. Rh6 {[%emt 0:03:49] Wards off Rxe4. Rh7+ is the strong threat.} (39. Rgg6 $5 Re2+ $8 40. Kc1 Re1+ 41. Kb2 Re2+ 42. Ka3 $11) 39... Nd4+ {[%emt 0:00:37]} (39... Rxf3 40. Rxe6+ (40. Rxh5 Nd4+ 41. Kb1 Rxb3+ 42. Kc1 Rf8 $15) 40... Kxe6 41. Ng5+ Kf5 42. Nxf3 $18) 40. Kb1 {[%emt 0:00:00]} Rxb3+ {[%emt 0:00:00]} (40... Rf8 $15 41. Nd2 Nxb3 (41... Nxf3 42. Nxf3 Rxb3+ 43. Ka2 $19) 42. Nxb3 Rxb3+ 43. Kc2 Rbxf3 (43... Rfxf3 44. Rg7+ Kf8 45. Rd7 $11) 44. Rxc6 Rf2+ 45. Kd3 R2f3+ 46. Kd2 R3f6 47. Rg7+ Kd8) 41. Ka2 {[%emt 0:03:12] White threatens Rg7+ and mate.} Rxf3 {[%emt 0:01:26]} 42. Rxh5 {[%emt 0:01:06]} Rdf8 {[%emt 0:05:47]} 43. Rb1 {[%emt 0:03:17]} Re3 {[%emt 0:01:43]} 44. Re5+ {[%emt 0:03:32]} (44. Rh7+ $1 $11 Rf7 45. Rxf7+ Kxf7 46. Ng5+ Kf6 47. Rxb6) 44... Kd8 $17 {[%emt 0:00:22] aiming for ...Re2+.} 45. Rxb6 $2 {[%emt 0:01:29][%mdl 8192] White does not recover from this.} (45. Rg1 $17) 45... Rf4 $19 {[%emt 0:05:05][%csl LRe4,LRh4]} 46. Rb8+ {[%emt 0:00:19]} Kc7 {[%emt 0:00:07]} 47. Rb7+ {[%emt 0:00:21]} Kxb7 {[%emt 0:00:09]} 48. Nd6+ {[%emt 0:00:04]} ({Reject} 48. Nxc5+ Kb6 49. Nd7+ Kc7 50. Rxe3 Rf2+ (50... Kxd7 $2 51. Rh3 $19) 51. Kb1 Kxd7 $19) 48... Kc7 {[%emt 0:00:07]} 49. Ne8+ {[%emt 0:00:04] [#]} Kd7 $1 {[%emt 0:00:17]} 50. Rxe3 {[%emt 0:00:09][%mdl 4096] Endgame. KRN-KRN} Ne6 {[%emt 0:00:51]} (50... Rxh4 51. Nf6+ Kc8 52. Re7 $15) 51. Re5 {[%emt 0:00:30]} Rf8 {[%emt 0:00:19]} 52. Nc7 {[%emt 0:00:23]} Nxc7 {[%emt 0:00:19]} 53. Rxc5 {[%emt 0:00:02] KRN-KR} Kd6 {[%emt 0:00:34]} 54. Rxa5 {[%emt 0:00:13]} (54. Rh5) 54... c5 {[%emt 0:00:13]} 55. Ra7 {[%emt 0:00:06]} Kc6 {[%emt 0:00:07]} 56. a5 {[%emt 0:00:06]} Rh8 {[%emt 0:00:36]} 57. Kb3 {[%emt 0:00:19]} Rxh4 {[%emt 0:00:17]} 58. a6 {[%emt 0:00:05]} Rh8 {[%emt 0:00:37] ( -> ...Ra8)} 59. Ka4 {[%emt 0:00:02] [#]} (59. Rb7 $19) 59... Rb8 {[%emt 0:00:26] Weighted Error Value: White=0.33/Black=0.09 (flawless) .  Loses game:     	White=1     	---        Mistake:       	White=4     	Black=2      Inaccurate:     	White=5     	Black=5      OK:         	White=19    	Black=19     Best:        	White=5     	Black=8      Strong:       	White=1     	Black=2} 0-1